fUST/lending_fUST_20250930
["ID","MTS","AMOUNT","RATE_DAILY","PERIOD"]
[388422223,1759163481662,-480.0,0.00023539,2]
[388422224,1759163481854,-142.57686388,0.00023555,2]
[388422226,1759163481885,-225.10927616,0.00023555,2]
[388422227,1759163481913,-500.0,0.00023555,2]
[388422228,1759163481946,-500.0,0.00023555,2]
[388422229,1759163481975,-500.0,0.00023555,2]
[388422230,1759163482006,-500.0,0.00023555,2]
[388422231,1759163482038,-500.0,0.00023555,2]
[388422232,1759163482070,-258.79253667,0.00023555,2]
[388422233,1759163482099,-342.23264658,0.0002356,2]
[388422234,1759163482175,-137.76735342,0.0002356,2]
[388422235,1759163482201,-480.0,0.0002356,2]
[388422236,1759163482228,-500.0,0.00023562,2]
[388422237,1759163482254,-314.73910866,0.00023562,2]
[388422238,1759163482280,-480.0,0.00023562,2]
[388422239,1759163482308,-480.0,0.00023562,2]
[388422240,1759163482335,-480.0,0.00023562,2]
[388422241,1759163482362,-480.0,0.00023562,2]
[388422242,1759163482387,-480.0,0.00023562,2]
[388422243,1759163482413,-480.0,0.00023562,2]
[388422244,1759163482441,-508.78,0.00023562,2]
[388422245,1759163482506,-480.0,0.00023565,2]
[388422246,1759163482535,-1661.69,0.00023565,2]
[388422247,1759163483014,-523.98442926,0.00023566,2]
[388422248,1759163483029,-5716.63,0.00023566,2]
[388422249,1759163492099,-512.52,0.00023539,2]
[388422250,1759163492132,-480.0,0.00023539,2]
[388422251,1759163492163,-480.0,0.00023539,2]
[388422252,1759163492195,-480.0,0.00023539,2]
[388422253,1759163492226,-480.0,0.00023539,2]
[388422254,1759163492258,-282.47934986,0.00023539,2]
[388422255,1759163492288,-556.83,0.00023539,2]
[388422256,1759163492320,-480.0,0.0002356,2]
[388422257,1759163492349,-591.91,0.00023562,2]
[388422258,1759163492378,-480.0,0.00023565,2]
[388422259,1759163492677,-352.53130028,0.00023562,2]
[388422260,1759163492720,-1482.61869972,0.00023562,2]
[388422261,1759163492753,-480.0,0.00023565,2]
[388422262,1759163492791,-210.38505338,0.00023566,2]
[388422263,1759163492877,-480.0,0.00023565,2]
[388422264,1759163493098,-5174.0024938,0.00023566,2]
[388422265,1759163501763,-553.51,0.00023539,2]
[388422266,1759163501793,-480.0,0.00023539,2]
[388422267,1759163501823,-529.58901423,0.00023565,2]
[388422268,1759163502019,-1110.75,0.00023565,2]
[388422269,1759163502047,-480.0,0.00023566,2]
[388422270,1759163502076,-500.0,0.00023649,2]
[388422271,1759163502105,-500.0,0.00023649,2]
[388422272,1759163502133,-500.0,0.00023649,2]
[388422273,1759163502161,-192.31197154,0.00023649,2]
[388422274,1759163502411,-307.68802846,0.00023649,2]
[388422275,1759163511308,666.0,0.00022719,2]
[388422276,1759163511621,-480.0,0.00023539,2]
[388422277,1759163511649,-480.0,0.00023539,2]
[388422278,1759163511676,-480.0,0.00023539,2]
[388422279,1759163511705,-480.0,0.00023562,2]
[388422280,1759163511732,-2455.66,0.00023562,2]
[388422281,1759163511760,-543.32,0.00023565,2]
[388422282,1759163511871,-162.05,0.00023565,2]
[388422283,1759163511899,-480.0,0.00023565,2]
[388422284,1759163511928,-1162.61,0.00023565,2]
[388422285,1759163511958,-500.0,0.00023649,2]
[388422286,1759163511987,-500.0,0.00023649,2]
[388422287,1759163512017,-500.0,0.00023649,2]
[388422288,1759163512048,-500.0,0.00023649,2]
[388422289,1759163512237,-480.0,0.00023661,2]
[388422290,1759163512266,-480.0,0.00023661,2]
[388422291,1759163512493,-162.05,0.00023661,2]
[388422292,1759163512507,-317.95,0.00023661,2]
[388422293,1759163512517,-152.74,0.00023661,2]
[388422296,1759163522846,-480.0,0.00023539,2]
[388422297,1759163522875,-480.0,0.00023539,2]
[388422298,1759163522906,-480.0,0.00023539,2]
[388422299,1759163523061,-480.0,0.00023539,2]
[388422300,1759163523125,-480.0,0.00023539,2]
[388422301,1759163523157,-480.0,0.00023554,2]
[388422302,1759163523189,-1334.33,0.00023562,2]
[388422303,1759163523220,-575.48,0.00023562,2]
[388422304,1759163523251,-120.39,0.0002366,2]
[388422305,1759163523390,-179.61,0.0002366,2]
[388422306,1759163523419,-327.26,0.00023661,2]
[388422307,1759163523445,-289.77301404,0.00023661,2]
[388422308,1759163523475,-480.0,0.00023661,2]
[388422309,1759163523503,-304.02810323,0.00023661,2]
[388422310,1759163523532,-281.49616388,0.00023661,2]
[388422311,1759163523562,-480.0,0.00023661,2]
[388422312,1759163523590,-480.0,0.00023661,2]
[388422313,1759163523620,-2055.2554377,0.00023661,2]
[388422314,1759163524111,-245.1645623,0.00023661,2]
[388422315,1759163524121,-179.61,0.00023661,2]
[388422316,1759163528324,1135.4993495,0.00023401,2]
[388422317,1759163531707,-480.0,0.00023539,2]
[388422318,1759163531740,-480.0,0.00023539,2]
[388422319,1759163531773,-480.0,0.00023539,2]
[388422320,1759163531804,-480.0,0.00023539,2]
[388422321,1759163531843,-480.0,0.00023554,2]
[388422322,1759163531879,-480.0,0.0002356,2]
[388422323,1759163531913,-480.0,0.00023562,2]
[388422324,1759163531942,-650.23,0.00023562,2]
[388422325,1759163531975,-480.0,0.00023565,2]
[388422326,1759163532117,-4863.13,0.00023565,2]
[388422327,1759163532268,-480.0,0.00023539,2]
[388422328,1759163532279,-539.55,0.00023562,2]
[388422329,1759163532306,-216.59,0.00023562,2]
[388422330,1759163532318,-57.16,0.00023661,2]
[388422331,1759163541927,-480.0,0.00023539,2]
[388422332,1759163541958,-538.05,0.00023539,2]
[388422333,1759163541988,-449.33448472,0.00023539,2]
[388422334,1759163542020,-577.82,0.00023539,2]
[388422335,1759163542048,-480.0,0.00023554,2]
[388422336,1759163542077,-695.2,0.00023565,2]
[388422337,1759163542108,-1297.89103056,0.00023565,2]
[388422338,1759163542571,-963.41896944,0.00023565,2]
[388422339,1759163542635,-1200.0,0.0002366,2]
[388422340,1759163542663,-243.23,0.00023661,2]
[388422341,1759163542690,-909.24,0.00023661,2]
[388422342,1759163542716,-480.0,0.00023661,2]
[388422343,1759163542743,-503.59871345,0.00023661,2]
[388422344,1759163542770,-638.96,0.00023661,2]
[388422345,1759163542796,-480.0,0.00023661,2]
[388422346,1759163542825,-480.0,0.00023661,2]
[388422347,1759163543058,-129.9525731,0.00023661,2]
[388422348,1759163551747,-1886.94,0.00023539,2]
[388422349,1759163551776,-480.0,0.00023539,2]
[388422350,1759163551804,-480.0,0.00023554,2]
[388422351,1759163551835,-500.0,0.00023554,2]
[388422352,1759163551868,-500.0,0.00023555,2]
[388422353,1759163551900,-500.0,0.00023555,2]
[388422354,1759163551931,-500.0,0.00023555,2]
[388422355,1759163552087,-306.13,0.00023555,2]
[388422356,1759163552133,-193.87,0.00023555,2]
[388422357,1759163552163,-500.0,0.00023555,2]
[388422358,1759163552192,-500.0,0.00023555,2]
[388422359,1759163552220,-500.0,0.00023555,2]
[388422360,1759163552249,-500.0,0.00023555,2]
[388422361,1759163552279,-500.0,0.00023555,2]
[388422362,1759163552309,-435.086717,0.00023555,2]
[388422363,1759163552337,-500.0,0.00023555,2]
[388422364,1759163552365,-500.0,0.00023555,2]
[388422365,1759163552393,-500.0,0.00023555,2]
[388422366,1759163552423,-242.096566,0.00023555,2]
[388422367,1759163552600,-257.903434,0.00023555,2]
[388422369,1759163561742,-315.90706961,0.00023539,2]
[388422370,1759163561772,-313.4461521,0.00023539,2]
[388422371,1759163561803,-480.0,0.00023539,2]
[388422372,1759163561836,-1157.36,0.00023539,2]
[388422373,1759163561866,-1031.65,0.00023554,2]
[388422374,1759163561899,-500.0,0.00023555,2]
[388422375,1759163561928,-500.0,0.0002356,2]
[388422376,1759163561958,-500.0,0.0002356,2]
[388422377,1759163562101,-504.06509231,0.0002356,2]
[388422378,1759163562128,-1886.94,0.00023561,2]
[388422379,1759163562155,-1886.94,0.00023561,2]
[388422380,1759163562432,-403.28355658,0.00023555,2]
[388422381,1759163562454,-96.71644342,0.00023555,2]
[388422382,1759163562463,-500.0,0.00023555,2]
[388422383,1759163562473,-500.0,0.00023555,2]
[388422384,1759163562483,-347.40337196,0.00023555,2]
[388422385,1759163571771,-480.0,0.00023539,2]
[388422386,1759163571802,-2122.42,0.00023554,2]
[388422387,1759163571837,-152.59662804,0.00023555,2]
[388422388,1759163571871,-500.0,0.00023555,2]
[388422389,1759163571904,-500.0,0.00023555,2]
[388422390,1759163571937,-500.0,0.00023555,2]
[388422391,1759163571968,-500.0,0.00023555,2]
[388422392,1759163572069,-500.0,0.00023555,2]
[388422393,1759163572100,-500.0,0.00023555,2]
[388422394,1759163572131,-500.0,0.00023555,2]
[388422395,1759163572161,-500.0,0.00023555,2]
[388422396,1759163572192,-500.0,0.00023555,2]
[388422397,1759163572221,-500.0,0.00023555,2]
[388422398,1759163572251,-500.0,0.00023555,2]
[388422399,1759163572280,-500.0,0.00023555,2]
[388422400,1759163572463,-500.0,0.00023555,2]
[388422401,1759163572495,-350.75917266,0.00023555,2]
[388422402,1759163572713,-149.24082734,0.00023555,2]
[388422403,1759163572732,-350.75917266,0.00023555,2]
[388422404,1759163572751,-298.49165468,0.00023555,2]
[388422405,1759163576100,1000.0,0.00023287,5]
[388422406,1759163582163,-492.64,0.00023539,2]
[388422407,1759163582190,-480.0,0.00023539,2]
[388422408,1759163582218,-480.0,0.00023539,2]
[388422409,1759163582247,-480.0,0.00023539,2]
[388422410,1759163582276,-480.0,0.00023539,2]
[388422411,1759163582304,-480.0,0.00023554,2]
[388422412,1759163582334,-201.50834532,0.00023555,2]
[388422413,1759163582364,-500.0,0.00023555,2]
[388422414,1759163582392,-1000.0,0.00023561,5]
[388422415,1759163582599,-811.71330936,0.00023562,2]
[388422416,1759163582628,-300.0,0.0002356,2]
[388422417,1759163582638,-9700.01,0.00023562,2]
[388422418,1759163582672,-10000.01,0.00023562,2]
[388422419,1759163582702,-10000.01,0.00023562,2]
[388422420,1759163582716,-10000.01,0.00023562,2]
[388422421,1759163582750,-511.76330936,0.00023562,2]
[388422422,1759163582774,-8976.48338128,0.00023562,2]
[388422423,1759163582928,-1886.94,0.00023562,2]
[388422424,1759163582957,-1886.94,0.00023562,2]
[388422425,1759163582986,-480.0,0.00023562,2]
[388422426,1759163583016,-480.0,0.00023562,2]
[388422427,1759163583102,-532.25,0.00023562,2]
[388422428,1759163583135,-830.11,0.00023562,2]
[388422429,1759163583165,-500.0,0.00023562,2]
[388422430,1759163583195,-500.0,0.00023562,2]
[388422431,1759163583224,-500.0,0.00023562,2]
[388422432,1759163583252,-2025.77,0.00023562,2]
[388422433,1759163583443,-1288.25,0.00023563,2]
[388422434,1759163591756,-10000.01,0.00023465,2]
[388422435,1759163591906,-10000.01,0.00023465,2]
[388422436,1759163592243,-10000.01,0.00023465,2]
[388422437,1759163597214,167.218261,0.00011304,2]
[388422438,1759163597412,167.218261,0.00022607,2]
[388422449,1759163631846,-10000.01,0.00023465,2]
[388422450,1759163631981,-10000.01,0.00023465,2]
[388422451,1759163632098,-10000.01,0.00023465,2]
[388422452,1759163632243,-10000.01,0.00023465,2]
[388422453,1759163632408,-10000.01,0.00023465,2]
[388422454,1759163632522,-10000.01,0.00023465,2]
[388422455,1759163632623,-10000.01,0.00023465,2]
[388422456,1759163642064,-4338.81,0.00023455,3]
[388422457,1759163642094,-1322.39,0.00023455,3]
[388422458,1759163642360,-170.66,0.00023455,10]
[388422459,1759163642396,-1661.48053498,0.00023455,2]
[388422460,1759163642834,300.0,0.00023464,2]
[388422462,1759163648161,2830.6,0.00023455,3]
[388422463,1759163651340,853.33,0.00023455,10]
[388422464,1759163652889,226.530555,0.00022562,2]
[388422465,1759163656960,-254.96722658,0.00023465,2]
[388422466,1759163659242,1548.02,0.00023455,3]
[388422467,1759163659638,-262.96169475,0.00023465,2]
[388422468,1759163663178,577.24837504,0.00023462,2]
[388422470,1759163701906,-774.01,0.00023455,3]
[388422471,1759163701935,-736.0,0.00023455,3]
[388422472,1759163701965,-368.0,0.00023455,3]
[388422473,1759163701996,-300.0,0.00023461,2]
[388422474,1759163702102,-3823.66433088,0.00023462,2]
[388422475,1759163702207,-1660.9424082,0.00023462,2]
[388422476,1759163702241,-691.73893004,0.00023462,2]
[388422477,1759163702283,300.0,0.00023461,2]
[388422478,1759163702344,551.13,0.00023464,2]
[388422479,1759163702736,300.0,0.00023461,2]
[388422480,1759163702762,300.0,0.00023461,2]
[388422481,1759163702898,184.0,0.00023455,3]
[388422482,1759163704583,300.0,0.00023461,2]
[388422483,1759163705696,276.48877692,0.00023464,2]
[388422484,1759163707269,292.91812652,0.00023464,2]
[388422485,1759163707534,500.0,0.00023464,2]
[388422486,1759163707757,500.0,0.00023464,2]
[388422487,1759163707954,500.0,0.00023464,2]
[388422488,1759163708400,500.0,0.00023464,2]
[388422489,1759163708432,500.0,0.00023464,2]
[388422490,1759163708710,200.0,0.00023464,2]
[388422491,1759163708740,500.0,0.00023464,2]
[388422492,1759163708768,500.0,0.00023464,2]
[388422493,1759163708796,500.0,0.00023464,2]
[388422494,1759163708825,500.0,0.00023464,2]
[388422495,1759163708857,500.0,0.00023464,2]
[388422496,1759163710070,166.25197857,0.00023464,2]
[388422497,1759163710099,500.0,0.00023464,2]
[388422498,1759163710130,245.74325791,0.00023464,2]
[388422499,1759163710154,254.25674209,0.00023464,2]
[388422500,1759163710183,500.0,0.00023464,2]
[388422501,1759163713619,552.05,0.00023455,3]
[388422502,1759163714009,480.0,0.00023464,2]
[388422503,1759163714767,500.0,0.00023464,2]
[388422504,1759163715036,500.0,0.00023464,2]
[388422505,1759163715065,410.45204947,0.00023464,2]
[388422506,1759163715093,247.62297418,0.00023464,2]
[388422507,1759163715125,500.0,0.00023464,2]
[388422508,1759163715376,500.0,0.00023464,2]
[388422509,1759163715413,500.0,0.00023464,2]
[388422510,1759163715440,485.63019752,0.00023464,2]
[388422511,1759163715479,500.0,0.00023464,2]
[388422512,1759163715516,500.0,0.00023464,2]
[388422513,1759163715549,500.0,0.00023464,2]
[388422514,1759163715578,500.0,0.00023464,2]
[388422515,1759163715615,500.0,0.00023464,2]
[388422516,1759163715649,500.0,0.00023464,2]
[388422517,1759163715682,441.0082561,0.00023464,2]
[388422518,1759163715736,500.0,0.00023464,2]
[388422519,1759163716003,500.0,0.00023464,2]
[388422520,1759163716043,128.98978064,0.00023464,2]
[388422521,1759163716068,371.01021936,0.00023464,2]
[388422522,1759163716101,500.0,0.00023464,2]
[388422523,1759163716133,500.0,0.00023464,2]
[388422524,1759163716162,500.0,0.00023464,2]
[388422525,1759163716219,500.0,0.00023464,2]
[388422526,1759163716277,-259.09,0.00023465,2]
[388422527,1759163716310,500.0,0.00023464,2]
[388422528,1759163716353,500.0,0.00023464,2]
[388422529,1759163716395,500.0,0.00023464,2]
[388422530,1759163717885,1200.0,0.00023463,2]
[388422531,1759163723279,480.0,0.00023464,2]
[388422532,1759163726459,225.81,0.000232,2]
[388422533,1759163727072,379.7702236,0.00023465,2]
[388422534,1759163727688,500.0,0.00023464,2]
[388422535,1759163727715,198.82245676,0.00023464,2]
[388422536,1759163727742,500.0,0.00023464,2]
[388422537,1759163727770,500.0,0.00023464,2]
[388422538,1759163727796,500.0,0.00023464,2]
[388422539,1759163727825,500.0,0.00023464,2]
[388422540,1759163727856,500.0,0.00023464,2]
[388422541,1759163727886,500.0,0.00023464,2]
[388422542,1759163727922,144.59710028,0.00023464,2]
[388422543,1759163727947,355.40289972,0.00023464,2]
[388422544,1759163727983,500.0,0.00023464,2]
[388422545,1759163728013,500.0,0.00023464,2]
[388422546,1759163728045,500.0,0.00023464,2]
[388422547,1759163728075,500.0,0.00023464,2]
[388422548,1759163728108,500.0,0.00023464,2]
[388422549,1759163728142,500.0,0.00023464,2]
[388422550,1759163728173,500.0,0.00023464,2]
[388422551,1759163728201,500.0,0.00023464,2]
[388422552,1759163728427,500.0,0.00023464,2]
[388422553,1759163728453,548.71292455,0.00023464,2]
[388422554,1759163728485,500.0,0.00023464,2]
[388422555,1759163728513,500.0,0.00023464,2]
[388422556,1759163728540,500.0,0.00023464,2]
[388422557,1759163728568,500.0,0.00023464,2]
[388422558,1759163728597,500.0,0.00023464,2]
[388422559,1759163728625,500.0,0.00023464,2]
[388422560,1759163728654,500.0,0.00023464,2]
[388422561,1759163728697,500.0,0.00023464,2]
[388422562,1759163728723,500.0,0.00023464,2]
[388422563,1759163728751,95.89417573,0.00023464,2]
[388422564,1759163728775,404.10582427,0.00023464,2]
[388422565,1759163728802,500.0,0.00023464,2]
[388422566,1759163728832,491.0082561,0.00023464,2]
[388422567,1759163728875,500.0,0.00023464,2]
[388422568,1759163728934,500.0,0.00023464,2]
[388422569,1759163728969,500.0,0.00023464,2]
[388422570,1759163729001,500.0,0.00023464,2]
[388422571,1759163729033,500.0,0.00023464,2]
[388422572,1759163729070,500.0,0.00023464,2]
[388422573,1759163729119,480.0,0.00023464,2]
[388422574,1759163732512,-170.05396107,0.00023465,2]
[388422575,1759163733077,500.0,0.00023464,2]
[388422576,1759163733430,500.0,0.00023464,2]
[388422577,1759163733735,300.0,0.00023464,2]
[388422578,1759163734647,-446.50441871,0.00023465,2]
[388422579,1759163736595,500.0,0.00023464,2]
[388422580,1759163744124,500.0,0.00023464,2]
[388422581,1759163744173,500.0,0.00023464,2]
[388422582,1759163744240,500.0,0.00023464,2]
[388422583,1759163744282,500.0,0.00023464,2]
[388422584,1759163744339,389.96967431,0.00023464,2]
[388422585,1759163744689,934.92624532,0.00023455,3]
[388422586,1759163744712,927.51375468,0.00023455,3]
[388422587,1759163746211,-212.19131915,0.00023465,2]
[388422588,1759163749188,-180.0,0.00023465,2]
[388422589,1759163751609,161.7,0.00023455,10]
[388422590,1759163751745,-300.0,0.00023465,2]
[388422591,1759163754614,-167.27394768,0.00023465,2]
[388422592,1759163754876,500.0,0.00023464,2]
[388422593,1759163754936,500.0,0.00023464,2]
[388422594,1759163754989,493.79716101,0.00023464,2]
[388422595,1759163755406,931.22,0.00023455,3]
[388422596,1759163763029,300.0,0.00023464,2]
[388422597,1759163765766,808.54,0.00023455,10]
[388422598,1759163766088,465.61,0.00023455,3]
[388422599,1759163767120,-265.56750659,0.00023465,2]
[388422600,1759163770479,-609.67,0.00023465,2]
[388422601,1759163771724,480.0,0.00023464,2]
[388422602,1759163773620,-5840.79820858,0.00023465,2]
[388422603,1759163773646,-10000.01,0.00023465,2]
[388422604,1759163773760,-10000.01,0.00023465,2]
[388422605,1759163773807,-10000.01,0.00023465,2]
[388422606,1759163774014,-300.0,0.00023465,2]
[388422607,1759163774296,676.1760523,0.000234,2]
[388422608,1759163775843,-169.49,0.00023465,2]
[388422609,1759163779473,909.67,0.00023401,2]
[388422610,1759163782109,-232.81,0.00023455,3]
[388422611,1759163782136,-481.41985255,0.00023464,2]
[388422612,1759163782195,-7895.3742426,0.00023465,2]
[388422613,1759163782295,-10000.01,0.00023465,2]
[388422614,1759163782438,-10000.01,0.00023465,2]
[388422615,1759163782550,-10000.01,0.00023465,2]
[388422616,1759163782656,-10000.01,0.00023465,2]
[388422617,1759163782774,-10000.01,0.00023465,2]
[388422618,1759163782900,-10000.01,0.00023465,2]
[388422619,1759163802164,169.49,0.00023401,2]
[388422620,1759163802235,-10000.01,0.00023455,2]
[388422621,1759163802480,-10000.01,0.00023455,2]
[388422622,1759163822155,-305.17994715,0.00023454,2]
[388422623,1759163822183,-500.0,0.00023454,2]
[388422624,1759163822210,-183.09130357,0.00023454,2]
[388422625,1759163822243,-500.0,0.00023454,2]
[388422626,1759163822276,-500.0,0.00023454,2]
[388422627,1759163822303,-500.0,0.00023454,2]
[388422628,1759163822330,-500.0,0.00023454,2]
[388422629,1759163822358,-500.0,0.00023454,2]
[388422630,1759163822384,-500.0,0.00023454,2]
[388422631,1759163822412,-307.65388854,0.00023454,2]
[388422632,1759163822438,-500.0,0.00023454,2]
[388422633,1759163822568,-500.0,0.00023454,2]
[388422634,1759163822599,-500.0,0.00023454,2]
[388422635,1759163822628,-500.0,0.00023454,2]
[388422636,1759163822656,-500.0,0.00023454,2]
[388422637,1759163822683,-500.0,0.00023454,2]
[388422638,1759163822713,-505.32075642,0.00023454,2]
[388422639,1759163822740,-500.0,0.00023454,2]
[388422640,1759163822767,-500.0,0.00023454,2]
[388422641,1759163822794,-500.0,0.00023454,2]
[388422642,1759163822996,-454.18945902,0.00023454,2]
[388422643,1759163823144,-500.0,0.00023454,2]
[388422644,1759163823174,-465.23299429,0.00023454,2]
[388422645,1759163823204,-356.5696767,0.00023454,2]
[388422646,1759163823232,-500.0,0.00023454,2]
[388422647,1759163823260,-500.0,0.00023454,2]
[388422648,1759163823288,-500.0,0.00023454,2]
[388422649,1759163823315,-500.0,0.00023454,2]
[388422650,1759163823341,-500.0,0.00023454,2]
[388422651,1759163823367,-500.0,0.00023454,2]
[388422652,1759163824078,-75.04759371,0.00023455,2]
[388422653,1759163824108,-500.0,0.00023455,2]
[388422654,1759163824134,-1356.40465802,0.00023455,2]
[388422655,1759163824163,-300.0,0.00023453,2]
[388422656,1759163824172,-9700.01,0.00023455,2]
[388422657,1759163824246,-10000.01,0.00023455,2]
[388422658,1759163824322,-10000.01,0.00023455,2]
[388422659,1759163824496,-8437.30363717,0.00023455,2]
[388422660,1759163824505,-698.44,0.00023455,3]
[388422661,1759163824514,-576.24976472,0.00023455,2]
[388422662,1759163824523,-288.01659811,0.0002346,2]
[388422663,1759163824578,-10000.01,0.0002346,2]
[388422664,1759163842200,-1200.0,0.00023459,2]
[388422665,1759163842241,-7600.01,0.0002346,2]
[388422666,1759163842296,-10000.01,0.0002346,2]
[388422667,1759163842519,-1051.28084719,0.0002346,2]
[388422668,1759163842554,-480.0,0.00023464,2]
[388422669,1759163842588,-480.0,0.00023464,2]
[388422670,1759163842621,-480.0,0.00023464,2]
[388422671,1759163842658,-767.92,0.00023464,2]
[388422672,1759163842691,-480.0,0.00023464,2]
[388422673,1759163842725,-727.24,0.00023464,2]
[388422674,1759163842885,-1067.12830562,0.00023464,2]
[388422675,1759163846623,5000.0,0.00023401,2]
[388422676,1759163862371,-500.0,0.00023454,2]
[388422677,1759163862401,-500.0,0.00023454,2]
[388422678,1759163862430,-500.0,0.00023454,2]
[388422679,1759163862458,-234.97702049,0.00023454,2]
[388422680,1759163862486,-534.76700571,0.00023454,2]
[388422681,1759163862514,-68.69169438,0.00023464,2]
[388422682,1759163862542,-480.0,0.00023464,2]
[388422683,1759163862569,-480.0,0.00023464,2]
[388422684,1759163862822,-1059.12855884,0.00023464,2]
[388422685,1759163863068,-1284.88144116,0.00023464,2]
[388422686,1759163863100,-480.0,0.00023464,2]
[388422687,1759163863128,-4392.37,0.00023464,2]
[388422688,1759163863171,-480.0,0.00023464,2]
[388422689,1759163863198,-480.0,0.00023464,2]
[388422690,1759163863226,-480.0,0.00023464,2]
[388422691,1759163863256,-480.0,0.00023464,2]
[388422692,1759163863284,-502.24,0.00023464,2]
[388422693,1759163869971,5000.0,0.00023465,2]
[388422694,1759163871847,155.53,0.00023464,2]
[388422695,1759163871868,324.47,0.00023464,2]
[388422696,1759163872115,480.0,0.00023464,2]
[388422697,1759163875134,4601.76,0.00023464,2]
[388422698,1759163877867,4593.78,0.00023465,2]
[388422699,1759163877890,406.22,0.00023465,2]
[388422700,1759163880211,349.23,0.0001812,2]
[388422701,1759163880240,171.81818016,0.0002346,2]
[388422702,1759163880736,349.23,0.0001812,2]
[388422703,1759163882043,1779.59,0.00023464,2]
[388422704,1759163882620,300.0,0.00023464,2]
[388422705,1759163884058,283.2,0.0001812,7]
[388422706,1759163893131,5000.0,0.00023465,2]
[388422707,1759163893192,495.74,0.00023464,2]
[388422708,1759163893623,864.98181984,0.00023439,2]
[388422709,1759163893644,10000.01,0.00023439,2]
[388422710,1759163893666,1013.48625272,0.00023439,2]
[388422711,1759163898354,1143.63,0.00023464,2]
[388422712,1759163900977,3225.00496384,0.00023465,2]
[388422713,1759163906702,480.0,0.00023464,2]
[388422714,1759163907155,481.29,0.00023464,2]
[388422715,1759163909004,480.0,0.00023464,2]
[388422716,1759163911282,478.1639125,0.00023464,2]
[388422717,1759163911310,213.625963,0.00023464,2]
[388422718,1759163912371,206.28551963,0.00023464,2]
[388422719,1759163912400,440.58144381,0.00023464,2]
[388422720,1759163912432,413.32763971,0.00023464,2]
[388422721,1759163913417,153.87520858,0.00023365,2]
[388422722,1759163915811,621.2,0.00023464,2]
[388422723,1759163916189,649.53909621,0.00023465,2]
[388422724,1759163916212,4350.46090379,0.00023465,2]
[388422725,1759163918447,5649.54909621,0.00023454,2]
[388422726,1759163918470,10000.01,0.00023454,2]
[388422727,1759163918496,10000.01,0.00023454,2]
[388422728,1759163918521,9801.63325827,0.00023454,2]
[388422729,1759163921605,1004.23,0.00033726,60]
[388422730,1759163922533,198.37674173,0.00023464,2]
[388422731,1759163922555,357.76325827,0.00023464,2]
[388422732,1759163923155,500.0,0.00023464,2]
[388422733,1759163923356,153.87520858,0.00023402,2]
[388422734,1759163924058,1774.99503616,0.00023465,2]
[388422735,1759163924486,1303.9,0.00023464,2]
[388422736,1759163932407,-153.87520858,0.00023439,2]
[388422737,1759163932435,-500.0,0.00023464,2]
[388422738,1759163932464,-500.0,0.00023464,2]